[Event "*** Titled Tuesday Blitz"]
[Site "Chess.com"]
[Date "2018.06.05"]
[Round "5"]
[White "maximlavrov"]
[Black "korason34"]
[Result "1-0"]
[WhiteElo "2472"]
[BlackElo "2469"]
[TimeControl "180+2"]
[EndTime "14:15:05 PDT"]
[Termination "maximlavrov won by resignation"]

1. g3 {[%clk 0:03:01.9]} 1... Nf6 {[%clk 0:02:58.2]} 2. Nf3 {[%clk 0:03:01.8]}
2... b5 {[%clk 0:02:57.9]} 3. Bg2 {[%clk 0:03:02.6]} 3... Bb7 {[%clk 0:02:58.9]}
4. O-O {[%clk 0:03:04]} 4... e6 {[%clk 0:02:57.7]} 5. d3 {[%clk 0:03:04.6]} 5...
Be7 {[%clk 0:02:56.4]} 6. e4 {[%clk 0:03:04.5]} 6... O-O {[%clk 0:02:53.8]} 7.
Nbd2 {[%clk 0:03:04.6]} 7... c5 {[%clk 0:02:54.6]} 8. e5 {[%clk 0:03:04.9]} 8...
Nd5 {[%clk 0:02:54]} 9. Re1 {[%clk 0:03:05]} 9... Nc6 {[%clk 0:02:47.1]} 10. h4
{[%clk 0:03:03.8]} 10... d6 {[%clk 0:02:40]} 11. exd6 {[%clk 0:03:00.5]} 11...
Bxd6 {[%clk 0:02:41.9]} 12. a4 {[%clk 0:02:59.8]} 12... a6 {[%clk 0:02:41]} 13.
h5 {[%clk 0:03:00.7]} 13... h6 {[%clk 0:02:41.3]} 14. c3 {[%clk 0:02:55.8]}
14... Be7 {[%clk 0:02:28.6]} 15. Ne4 {[%clk 0:02:48.3]} 15... Nf6 {[%clk
0:02:20.7]} 16. Nxf6+ {[%clk 0:01:49.1]} 16... Bxf6 {[%clk 0:02:21.3]} 17. Be3
{[%clk 0:01:51]} 17... Qe7 {[%clk 0:02:20.6]} 18. Nd2 {[%clk 0:01:49.5]} 18...
Bg5 {[%clk 0:02:01.3]} 19. f4 {[%clk 0:01:47.7]} 19... Bf6 {[%clk 0:01:58.5]}
20. Ne4 {[%clk 0:01:49.1]} 20... Rfd8 {[%clk 0:01:35.9]} 21. Nxc5 {[%clk
0:01:44]} 21... Na5 {[%clk 0:00:49.3]} 22. Nxb7 {[%clk 0:01:36.7]} 22... Nxb7
{[%clk 0:00:51.2]} 23. axb5 {[%clk 0:01:31.3]} 23... axb5 {[%clk 0:00:51.5]} 24.
Rxa8 {[%clk 0:01:33.2]} 24... Rxa8 {[%clk 0:00:52.2]} 25. Qf3 {[%clk 0:01:35]}
25... Rb8 {[%clk 0:00:37]} 26. Ra1 {[%clk 0:01:35.8]} 26... Nd6 {[%clk
0:00:34.8]} 27. g4 {[%clk 0:01:27.7]} 27... Qd8 {[%clk 0:00:22.1]} 28. Ra8
{[%clk 0:01:25.8]} 28... Rxa8 {[%clk 0:00:18.8]} 29. Qxa8 {[%clk 0:01:27.7]}
29... Qxa8 {[%clk 0:00:19.3]} 30. Bxa8 {[%clk 0:01:29.1]} 30... Kf8 {[%clk
0:00:18]} 31. Bc6 {[%clk 0:01:26.1]} 31... Be7 {[%clk 0:00:18.4]} 32. Kf2 {[%clk
0:01:24.3]} 32... f5 {[%clk 0:00:18.5]} 33. Kf3 {[%clk 0:01:24.5]} 33... fxg4+
{[%clk 0:00:19.3]} 34. Kxg4 {[%clk 0:01:25.1]} 34... Kf7 {[%clk 0:00:20.5]} 35.
Bc5 {[%clk 0:01:18]} 35... Kf6 {[%clk 0:00:21.3]} 36. Bd4+ {[%clk 0:01:06]}
36... Kf7 {[%clk 0:00:22.3]} 37. Be5 {[%clk 0:01:07.2]} 37... g6 {[%clk
0:00:23.1]} 38. hxg6+ {[%clk 0:01:07]} 38... Kxg6 {[%clk 0:00:25]} 39. b3 {[%clk
0:01:00.3]} 39... h5+ {[%clk 0:00:25.9]} 40. Kf3 {[%clk 0:01:01.6]} 40... Kf5
{[%clk 0:00:17.7]} 41. c4 {[%clk 0:00:54.3]} 41... bxc4 {[%clk 0:00:18.4]} 42.
dxc4 {[%clk 0:00:55.5]} 42... Kg6 {[%clk 0:00:19.4]} 43. c5 {[%clk 0:00:54.2]}
43... Nf7 {[%clk 0:00:16]} 44. Bd4 {[%clk 0:00:53.5]} 44... Nd8 {[%clk
0:00:14.6]} 45. Be4+ {[%clk 0:00:52.5]} 45... Kf7 {[%clk 0:00:16.1]} 46. c6
{[%clk 0:00:53.5]} 46... Bd6 {[%clk 0:00:17.2]} 47. Be5 {[%clk 0:00:53]} 47...
Ke7 {[%clk 0:00:15.9]} 48. c7 {[%clk 0:00:53.9]} 48... Bxc7 {[%clk 0:00:13.9]}
49. Bxc7 {[%clk 0:00:55.8]} 49... Nf7 {[%clk 0:00:14.8]} 50. b4 {[%clk
0:00:56.5]} 50... Kd7 {[%clk 0:00:14.6]} 51. Be5 {[%clk 0:00:55.5]} 51... h4
{[%clk 0:00:15.7]} 52. Bd4 {[%clk 0:00:54.6]} 52... h3 {[%clk 0:00:16.5]} 53.
Kg3 {[%clk 0:00:55]} 53... Nd6 {[%clk 0:00:17.7]} 54. Bd3 {[%clk 0:00:56.2]}
54... Kc6 {[%clk 0:00:17.7]} 55. Kxh3 {[%clk 0:00:57.1]} 55... Kd5 {[%clk
0:00:19.2]} 56. Bf2 {[%clk 0:00:57]} 56... Ne8 {[%clk 0:00:14.8]} 57. Kg4 {[%clk
0:00:55.5]} 57... Nf6+ {[%clk 0:00:15.2]} 58. Kg5 {[%clk 0:00:56.6]} 58... Nd7
{[%clk 0:00:16.3]} 59. b5 {[%clk 0:00:52.4]} 59... e5 {[%clk 0:00:14.9]} 60. f5
{[%clk 0:00:52.1]} 60... e4 {[%clk 0:00:16]} 61. Be2 {[%clk 0:00:53.4]} 61...
Ke5 {[%clk 0:00:12.6]} 62. Bg3+ {[%clk 0:00:54]} 62... Kd4 {[%clk 0:00:13.4]}
63. f6 {[%clk 0:00:55.4]} 63... e3 {[%clk 0:00:12.2]} 64. f7 {[%clk 0:00:55.9]}
64... Kc3 {[%clk 0:00:12.9]} 65. Bg4 {[%clk 0:00:54.7]} 65... Nf8 {[%clk
0:00:13.8]} 66. b6 {[%clk 0:00:56.1]} 66... Kd2 {[%clk 0:00:13.7]} 67. b7 {[%clk
0:00:56.5]} 67... e2 {[%clk 0:00:15.1]} 68. Bxe2 {[%clk 0:00:57]} 68... Kxe2
{[%clk 0:00:14.8]} 69. b8=Q {[%clk 0:00:58.2]} 1-0

[Event "*** Titled Tuesday Blitz"]
[Site "Chess.com"]
[Date "2018.06.05"]
[Round "5"]
[White "olksuna"]
[Black "Bryakin_Mikhail"]
[Result "0-1"]
[WhiteElo "2400"]
[BlackElo "2646"]
[TimeControl "180+2"]
[EndTime "14:15:08 PDT"]
[Termination "Bryakin_Mikhail won by resignation"]

1. e4 {[%clk 0:03:01.9]} 1... c6 {[%clk 0:02:52.7]} 2. Ne2 {[%clk 0:03:00.9]}
2... d5 {[%clk 0:02:53.6]} 3. e5 {[%clk 0:03:01.5]} 3... c5 {[%clk 0:02:51.9]}
4. d4 {[%clk 0:03:00.7]} 4... Nc6 {[%clk 0:02:50.2]} 5. c3 {[%clk 0:03:01.1]}
5... Qb6 {[%clk 0:02:41.2]} 6. dxc5 {[%clk 0:02:54.1]} 6... Qxc5 {[%clk
0:02:42.1]} 7. Be3 {[%clk 0:02:55.6]} 7... Qa5 {[%clk 0:02:42.5]} 8. b4 {[%clk
0:02:55.7]} 8... Qd8 {[%clk 0:02:43.2]} 9. f4 {[%clk 0:02:53]} 9... Bg4 {[%clk
0:02:34.9]} 10. h3 {[%clk 0:02:49]} 10... Bxe2 {[%clk 0:02:34.7]} 11. Bxe2
{[%clk 0:02:50.6]} 11... e6 {[%clk 0:02:34.3]} 12. O-O {[%clk 0:02:51.1]} 12...
Nge7 {[%clk 0:02:31.3]} 13. Bd3 {[%clk 0:02:47.2]} 13... g6 {[%clk 0:02:22.2]}
14. Nd2 {[%clk 0:02:45.3]} 14... Nf5 {[%clk 0:02:22.6]} 15. Bxf5 {[%clk
0:02:45.1]} 15... gxf5 {[%clk 0:02:23.3]} 16. Qh5 {[%clk 0:02:43.4]} 16... d4
{[%clk 0:02:04.8]} 17. cxd4 {[%clk 0:02:39.7]} 17... Bxb4 {[%clk 0:02:05.8]} 18.
Nf3 {[%clk 0:02:36.6]} 18... Be7 {[%clk 0:01:59.6]} 19. d5 {[%clk 0:02:17.1]}
19... Qxd5 {[%clk 0:01:53.4]} 20. Rad1 {[%clk 0:02:11.3]} 20... Qxa2 {[%clk
0:01:38.4]} 21. Ng5 {[%clk 0:01:58.9]} 21... Bxg5 {[%clk 0:01:22.5]} 22. Qxg5
{[%clk 0:01:59.2]} 22... Qa3 {[%clk 0:01:23.6]} 23. Bf2 {[%clk 0:01:36]} 23...
Qe7 {[%clk 0:01:18.1]} 24. Qg7 {[%clk 0:01:33.8]} 24... Qf8 {[%clk 0:01:12.2]}
25. Qf6 {[%clk 0:01:33.6]} 25... Rg8 {[%clk 0:01:13.6]} 26. Bh4 {[%clk
0:01:00.2]} 26... Rg6 {[%clk 0:00:51.6]} 27. Rd6 {[%clk 0:00:43.7]} 27... Rxf6
{[%clk 0:00:50.2]} 28. Bxf6 {[%clk 0:00:44.7]} 28... Ne7 {[%clk 0:00:32.6]} 29.
Rb1 {[%clk 0:00:34.5]} 29... Rb8 {[%clk 0:00:28.8]} 30. Rc1 {[%clk 0:00:33.6]}
30... Nd5 {[%clk 0:00:28.1]} 31. Bh4 {[%clk 0:00:32.4]} 31... f6 {[%clk
0:00:24.9]} 32. Rxe6+ {[%clk 0:00:32.1]} 32... Kd7 {[%clk 0:00:17.5]} 33. Rd6+
{[%clk 0:00:31.8]} 33... Qxd6 {[%clk 0:00:19]} 34. exd6 {[%clk 0:00:33]} 34...
Kxd6 {[%clk 0:00:20.9]} 35. Bf2 {[%clk 0:00:32.4]} 35... b6 {[%clk 0:00:20.2]}
36. Kf1 {[%clk 0:00:30.2]} 36... Re8 {[%clk 0:00:21.5]} 37. g4 {[%clk
0:00:28.4]} 37... Ne3+ {[%clk 0:00:16.6]} 38. Kg1 {[%clk 0:00:26.4]} 38... Re4
{[%clk 0:00:13.7]} 39. Rc3 {[%clk 0:00:24]} 39... Nd5 {[%clk 0:00:12.9]} 40. Rc8
{[%clk 0:00:25]} 40... fxg4 {[%clk 0:00:13.5]} 41. f5 {[%clk 0:00:23.4]} 41...
gxh3 {[%clk 0:00:10.2]} 42. Bg3+ {[%clk 0:00:24.7]} 42... Kd7 {[%clk 0:00:11.7]}
43. Ra8 {[%clk 0:00:25.7]} 43... a5 {[%clk 0:00:12.7]} 44. Ra7+ {[%clk
0:00:25.6]} 44... Kc6 {[%clk 0:00:14.1]} 45. Rxh7 {[%clk 0:00:26.3]} 45... a4
{[%clk 0:00:15.5]} 46. Ra7 {[%clk 0:00:27.5]} 46... b5 {[%clk 0:00:14.5]} 47.
Kf2 {[%clk 0:00:28.6]} 47... Kc5 {[%clk 0:00:11.6]} 48. Kf3 {[%clk 0:00:29.2]}
48... Re3+ {[%clk 0:00:12.3]} 49. Kg4 {[%clk 0:00:28.8]} 49... Rd3 {[%clk
0:00:12.8]} 50. Bf2+ {[%clk 0:00:29.4]} 50... Kb4 {[%clk 0:00:13.5]} 51. Be1+
{[%clk 0:00:29.4]} 51... Kb3 {[%clk 0:00:14.6]} 52. Bg3 {[%clk 0:00:31.3]} 52...
b4 {[%clk 0:00:15.4]} 53. Kxh3 {[%clk 0:00:30.5]} 53... a3 {[%clk 0:00:16.7]}
54. Kg4 {[%clk 0:00:30]} 54... a2 {[%clk 0:00:17.6]} 55. Be1 {[%clk 0:00:29.7]}
55... Nc3 {[%clk 0:00:18.4]} 56. Bh4 {[%clk 0:00:23.2]} 56... Nd5 {[%clk
0:00:18.6]} 57. Kh5 {[%clk 0:00:16.8]} 57... Rd1 {[%clk 0:00:19.8]} 58. Kg6
{[%clk 0:00:13.1]} 58... a1=Q {[%clk 0:00:21]} 0-1

[Event "*** Titled Tuesday Blitz"]
[Site "Chess.com"]
[Date "2018.06.05"]
[Round "5"]
[White "CarlssonLudvig"]
[Black "julinha97"]
[Result "0-1"]
[WhiteElo "2076"]
[BlackElo "2209"]
[TimeControl "180+2"]
[EndTime "14:15:08 PDT"]
[Termination "julinha97 won by resignation"]

1. e4 {[%clk 0:03:01.9]} 1... c5 {[%clk 0:03:00.8]} 2. Nf3 {[%clk 0:03:02.7]}
2... d6 {[%clk 0:03:02.1]} 3. Bb5+ {[%clk 0:03:03.3]} 3... Nd7 {[%clk
0:03:02.4]} 4. O-O {[%clk 0:02:56.9]} 4... Nf6 {[%clk 0:02:55.4]} 5. Re1 {[%clk
0:02:57.6]} 5... a6 {[%clk 0:02:54.2]} 6. Bf1 {[%clk 0:02:55.6]} 6... b6 {[%clk
0:02:51.1]} 7. c3 {[%clk 0:02:53.2]} 7... Bb7 {[%clk 0:02:50.7]} 8. d3 {[%clk
0:02:54.5]} 8... g6 {[%clk 0:02:45.1]} 9. h3 {[%clk 0:02:51]} 9... Bg7 {[%clk
0:02:45]} 10. Bf4 {[%clk 0:02:50.9]} 10... O-O {[%clk 0:02:37.9]} 11. Qc1 {[%clk
0:02:51.7]} 11... Re8 {[%clk 0:02:36.7]} 12. Nbd2 {[%clk 0:02:50.7]} 12... e5
{[%clk 0:02:34.7]} 13. Bh2 {[%clk 0:02:49.8]} 13... b5 {[%clk 0:02:33]} 14. a4
{[%clk 0:02:50.3]} 14... Qc7 {[%clk 0:02:29.5]} 15. b4 {[%clk 0:02:48.5]} 15...
Rac8 {[%clk 0:02:20]} 16. axb5 {[%clk 0:02:48.6]} 16... axb5 {[%clk 0:02:21.9]}
17. bxc5 {[%clk 0:02:32.1]} 17... Qxc5 {[%clk 0:02:12.4]} 18. Qb2 {[%clk
0:02:06.8]} 18... Qxc3 {[%clk 0:02:09.6]} 19. Qxb5 {[%clk 0:02:07.3]} 19... Bc6
{[%clk 0:02:11.1]} 20. Qb3 {[%clk 0:02:05]} 20... Qxb3 {[%clk 0:02:07.1]} 21.
Nxb3 {[%clk 0:02:05.8]} 21... Bb5 {[%clk 0:02:08.6]} 22. Rec1 {[%clk 0:02:02.9]}
22... Nb6 {[%clk 0:01:52.6]} 23. Bg3 {[%clk 0:01:54.4]} 23... Ba4 {[%clk
0:01:50.7]} 24. Nbd2 {[%clk 0:01:48.9]} 24... Nfd7 {[%clk 0:01:51.7]} 25. Ne1
{[%clk 0:01:18.2]} 25... Nc5 {[%clk 0:01:48.4]} 26. f3 {[%clk 0:01:09.1]} 26...
Bh6 {[%clk 0:01:43.3]} 27. Ra2 {[%clk 0:01:09.2]} 27... Nb3 {[%clk 0:01:35.7]}
28. Rxc8 {[%clk 0:01:08.4]} 28... Rxc8 {[%clk 0:01:33.9]} 29. Nxb3 {[%clk
0:01:09.6]} 29... Bxb3 {[%clk 0:01:33.7]} 30. Rb2 {[%clk 0:01:10]} 30... Rc3
{[%clk 0:01:34.6]} 31. Bf2 {[%clk 0:00:39]} 31... Na4 {[%clk 0:01:34.1]} 32. Rb1
{[%clk 0:00:39]} 32... Bd2 {[%clk 0:01:12.3]} 33. d4 {[%clk 0:00:34.9]} 33...
Bc4 {[%clk 0:00:39.3]} 34. dxe5 {[%clk 0:00:31.5]} 34... Bxf1 {[%clk 0:00:38.3]}
35. Kxf1 {[%clk 0:00:27.5]} 35... dxe5 {[%clk 0:00:39.2]} 36. Ke2 {[%clk
0:00:17.3]} 36... Bh6 {[%clk 0:00:38.6]} 37. Rb4 {[%clk 0:00:14.5]} 37... Ra3
{[%clk 0:00:37.3]} 38. Nc2 {[%clk 0:00:04.9]} 38... Ra2 {[%clk 0:00:38.1]} 39.
Rc4 {[%clk 0:00:05.6]} 39... Kg7 {[%clk 0:00:32.1]} 40. Bc5 {[%clk 0:00:03.9]}
40... Nxc5 {[%clk 0:00:28.2]} 41. Rxc5 {[%clk 0:00:05]} 41... Bf4 {[%clk
0:00:23.5]} 42. Kd3 {[%clk 0:00:05.8]} 42... f6 {[%clk 0:00:23.5]} 43. Rc7+
{[%clk 0:00:06.6]} 43... Kh6 {[%clk 0:00:24]} 44. Rc3 {[%clk 0:00:06.6]} 44...
Kg5 {[%clk 0:00:21.5]} 45. Ra3 {[%clk 0:00:04.7]} 45... Rxa3+ {[%clk 0:00:20]}
46. Nxa3 {[%clk 0:00:05.5]} 46... Kh4 {[%clk 0:00:21.6]} 47. Ke2 {[%clk
0:00:06.9]} 47... Kg3 {[%clk 0:00:22.8]} 48. Kf1 {[%clk 0:00:08.4]} 48... f5
{[%clk 0:00:21.6]} 49. Nc4 {[%clk 0:00:07.9]} 49... fxe4 {[%clk 0:00:22]} 50.
fxe4 {[%clk 0:00:09.8]} 50... Kh2 {[%clk 0:00:20.4]} 51. Kf2 {[%clk 0:00:10.4]}
51... h5 {[%clk 0:00:19.6]} 52. Kf3 {[%clk 0:00:10.8]} 52... g5 {[%clk
0:00:20.3]} 53. g3 {[%clk 0:00:07.3]} 53... Bxg3 {[%clk 0:00:20.9]} 54. Ne3
{[%clk 0:00:08.4]} 54... Bf4 {[%clk 0:00:21.7]} 55. Nf5 {[%clk 0:00:07.6]} 55...
Kxh3 {[%clk 0:00:20.7]} 56. Ng7 {[%clk 0:00:08.6]} 56... g4+ {[%clk 0:00:21.8]}
57. Kf2 {[%clk 0:00:10]} 57... Kh2 {[%clk 0:00:22.7]} 58. Nxh5 {[%clk 0:00:10]}
58... g3+ {[%clk 0:00:24]} 59. Nxg3 {[%clk 0:00:10.6]} 59... Bxg3+ {[%clk
0:00:25.9]} 60. Kf3 {[%clk 0:00:12.2]} 60... Bf4 {[%clk 0:00:27.4]} 61. Ke2
{[%clk 0:00:12.2]} 61... Kg3 {[%clk 0:00:28.7]} 62. Kd3 {[%clk 0:00:13.6]} 62...
Kf3 {[%clk 0:00:29.9]} 63. Kc3 {[%clk 0:00:14]} 63... Kxe4 {[%clk 0:00:31.3]}
64. Kc2 {[%clk 0:00:15.9]} 64... Kf3 {[%clk 0:00:32.7]} 65. Kd1 {[%clk
0:00:17.8]} 65... Kf2 {[%clk 0:00:34.1]} 0-1

[Event "*** Titled Tuesday Blitz"]
[Site "Chess.com"]
[Date "2018.06.05"]
[Round "5"]
[White "ViktorMatviishen"]
[Black "AlexanderKing"]
[Result "0-1"]
[WhiteElo "2465"]
[BlackElo "2469"]
[TimeControl "180+2"]
[EndTime "14:15:10 PDT"]
[Termination "AlexanderKing won by checkmate"]

1. d4 {[%clk 0:03:01.1]} 1... d5 {[%clk 0:03:00.8]} 2. c4 {[%clk 0:02:57.2]}
2... e6 {[%clk 0:03:01.4]} 3. Nf3 {[%clk 0:02:58]} 3... Nf6 {[%clk 0:03:02.3]}
4. g3 {[%clk 0:02:59.1]} 4... c5 {[%clk 0:03:03.7]} 5. cxd5 {[%clk 0:02:59.4]}
5... exd5 {[%clk 0:03:05.6]} 6. Bg2 {[%clk 0:03:00.4]} 6... Nc6 {[%clk
0:03:07.2]} 7. O-O {[%clk 0:03:01.8]} 7... Be7 {[%clk 0:03:08.8]} 8. Nc3 {[%clk
0:03:03.1]} 8... O-O {[%clk 0:03:09.5]} 9. Bg5 {[%clk 0:03:04.1]} 9... Be6
{[%clk 0:03:10.9]} 10. dxc5 {[%clk 0:03:01.7]} 10... Bxc5 {[%clk 0:03:11.9]} 11.
Rc1 {[%clk 0:02:56.1]} 11... Be7 {[%clk 0:03:08.8]} 12. Nb5 {[%clk 0:02:52.9]}
12... Qb6 {[%clk 0:03:04.3]} 13. Nbd4 {[%clk 0:02:52.6]} 13... Nxd4 {[%clk
0:02:47.9]} 14. Qxd4 {[%clk 0:02:43.3]} 14... Rfc8 {[%clk 0:02:43.8]} 15. Qxb6
{[%clk 0:02:37.2]} 15... axb6 {[%clk 0:02:45.7]} 16. a3 {[%clk 0:02:37.9]} 16...
h6 {[%clk 0:02:46.5]} 17. Be3 {[%clk 0:02:25]} 17... b5 {[%clk 0:02:46.9]} 18.
Nd4 {[%clk 0:02:04.7]} 18... b4 {[%clk 0:02:46.6]} 19. axb4 {[%clk 0:02:05.2]}
19... Bxb4 {[%clk 0:02:46.1]} 20. Nb5 {[%clk 0:01:53.6]} 20... Rxc1 {[%clk
0:02:33.3]} 21. Rxc1 {[%clk 0:01:52.7]} 21... Ra2 {[%clk 0:02:00.7]} 22. Bd4
{[%clk 0:01:50.4]} 22... Ne8 {[%clk 0:01:55.9]} 23. Nc3 {[%clk 0:00:49.3]} 23...
Bxc3 {[%clk 0:00:41.6]} 24. bxc3 {[%clk 0:00:48.5]} 24... Rxe2 {[%clk
0:00:38.5]} 25. Rb1 {[%clk 0:00:49.9]} 25... Nd6 {[%clk 0:00:33.6]} 26. Bf3
{[%clk 0:00:51.3]} 26... Ra2 {[%clk 0:00:31.4]} 27. h4 {[%clk 0:00:42.6]} 27...
Nf5 {[%clk 0:00:20.9]} 28. Be5 {[%clk 0:00:39.5]} 28... f6 {[%clk 0:00:20.8]}
29. Bc7 {[%clk 0:00:31.4]} 29... Ra3 {[%clk 0:00:17.2]} 30. Rc1 {[%clk
0:00:29.3]} 30... d4 {[%clk 0:00:14.3]} 31. g4 {[%clk 0:00:18.8]} 31... Nxh4
{[%clk 0:00:14.2]} 32. Bxb7 {[%clk 0:00:19.3]} 32... Rxc3 {[%clk 0:00:15.4]} 33.
Rxc3 {[%clk 0:00:19.6]} 33... dxc3 {[%clk 0:00:17.3]} 34. f3 {[%clk 0:00:19.4]}
34... Ng6 {[%clk 0:00:11.4]} 35. Ba5 {[%clk 0:00:17.1]} 35... c2 {[%clk
0:00:11.2]} 36. Bd2 {[%clk 0:00:18.2]} 36... Ne7 {[%clk 0:00:06.8]} 37. Kf2
{[%clk 0:00:18.1]} 37... Bd5 {[%clk 0:00:06.9]} 38. Ba6 {[%clk 0:00:19.4]} 38...
Kf7 {[%clk 0:00:06.8]} 39. Ke3 {[%clk 0:00:18.7]} 39... Bb3 {[%clk 0:00:06.6]}
40. Kd4 {[%clk 0:00:19]} 40... Bd5 {[%clk 0:00:06.8]} 41. Bd3 {[%clk 0:00:18.5]}
41... Bxf3 {[%clk 0:00:07.7]} 42. Bxc2 {[%clk 0:00:17.6]} 42... Bxg4 {[%clk
0:00:09]} 43. Kc5 {[%clk 0:00:18.9]} 43... Be6 {[%clk 0:00:10.1]} 44. Kd6 {[%clk
0:00:20.3]} 44... Nf5+ {[%clk 0:00:11.3]} 45. Kc7 {[%clk 0:00:20.1]} 45... g5
{[%clk 0:00:10.8]} 46. Kd8 {[%clk 0:00:20.2]} 46... h5 {[%clk 0:00:11.8]} 47.
Ba4 {[%clk 0:00:20.2]} 47... h4 {[%clk 0:00:12.8]} 48. Be8+ {[%clk 0:00:21.7]}
48... Kg7 {[%clk 0:00:14.3]} 49. Bc6 {[%clk 0:00:20.6]} 49... g4 {[%clk
0:00:13.6]} 50. Kc7 {[%clk 0:00:21.7]} 50... h3 {[%clk 0:00:12.8]} 51. Bf4
{[%clk 0:00:21.3]} 51... g3 {[%clk 0:00:13.2]} 52. Bf3 {[%clk 0:00:19.8]} 52...
g2 {[%clk 0:00:08.8]} 53. Bh2 {[%clk 0:00:20.6]} 53... Nd4 {[%clk 0:00:09]} 54.
Bd1 {[%clk 0:00:21.5]} 54... Bc4 {[%clk 0:00:10.1]} 55. Kd6 {[%clk 0:00:21]}
55... Be2 {[%clk 0:00:10.4]} 56. Ba4 {[%clk 0:00:19.6]} 56... Nf3 {[%clk
0:00:11.1]} 57. Bf4 {[%clk 0:00:17.5]} 57... g1=Q {[%clk 0:00:11.4]} 58. Ke7
{[%clk 0:00:18.6]} 58... Qa7+ {[%clk 0:00:11.3]} 59. Ke6 {[%clk 0:00:17.8]}
59... Bc4+ {[%clk 0:00:09.9]} 60. Kf5 {[%clk 0:00:19.7]} 60... Qd7+ {[%clk
0:00:10]} 61. Ke4 {[%clk 0:00:20.2]} 61... Qd3# {[%clk 0:00:08.2]} 0-1

[Event "*** Titled Tuesday Blitz"]
[Site "Chess.com"]
[Date "2018.06.05"]
[Round "5"]
[White "Matibar"]
[Black "TigranLPetrosyan"]
[Result "1-0"]
[WhiteElo "2726"]
[BlackElo "2807"]
[TimeControl "180+2"]
[EndTime "14:15:13 PDT"]
[Termination "Matibar won by resignation"]

1. e4 {[%clk 0:03:01.9]} 1... g6 {[%clk 0:02:55.3]} 2. d4 {[%clk 0:03:02.6]}
2... Bg7 {[%clk 0:02:57.2]} 3. Nf3 {[%clk 0:03:03.9]} 3... d6 {[%clk 0:02:57.5]}
4. Bc4 {[%clk 0:03:05.4]} 4... Nf6 {[%clk 0:02:56.7]} 5. Qe2 {[%clk 0:03:05.9]}
5... O-O {[%clk 0:02:58.2]} 6. h3 {[%clk 0:03:04.6]} 6... c6 {[%clk 0:02:59.6]}
7. Bb3 {[%clk 0:03:05.2]} 7... a5 {[%clk 0:03:00.8]} 8. a4 {[%clk 0:03:03.6]}
8... b6 {[%clk 0:03:01.8]} 9. e5 {[%clk 0:02:41.8]} 9... Nd5 {[%clk 0:02:58.4]}
10. O-O {[%clk 0:02:40.1]} 10... Ba6 {[%clk 0:02:54.1]} 11. c4 {[%clk
0:02:32.1]} 11... Nb4 {[%clk 0:02:40.7]} 12. Bg5 {[%clk 0:02:22.1]} 12... dxe5
{[%clk 0:02:24.4]} 13. dxe5 {[%clk 0:02:18.6]} 13... Qd3 {[%clk 0:02:23.7]} 14.
Qxd3 {[%clk 0:02:16.9]} 14... Nxd3 {[%clk 0:02:25.6]} 15. Bxe7 {[%clk
0:01:32.1]} 15... Re8 {[%clk 0:02:25.8]} 16. Bd6 {[%clk 0:01:33.5]} 16... Nd7
{[%clk 0:02:23.1]} 17. Nbd2 {[%clk 0:01:25.4]} 17... N7xe5 {[%clk 0:02:18.3]}
18. Nxe5 {[%clk 0:01:25.4]} 18... Nxe5 {[%clk 0:02:08.3]} 19. Bc7 {[%clk
0:00:47.3]} 19... Nd7 {[%clk 0:02:07.2]} 20. Rab1 {[%clk 0:00:37.8]} 20... Rac8
{[%clk 0:01:16.4]} 21. Bf4 {[%clk 0:00:37.7]} 21... Nc5 {[%clk 0:01:13.9]} 22.
Bc2 {[%clk 0:00:38]} 22... Rcd8 {[%clk 0:01:01.9]} 23. b3 {[%clk 0:00:31.9]}
23... Ne6 {[%clk 0:00:48]} 24. Be3 {[%clk 0:00:31.5]} 24... Bd4 {[%clk
0:00:49.5]} 25. Bh6 {[%clk 0:00:30.7]} 25... Bg7 {[%clk 0:00:40]} 26. Be3 {[%clk
0:00:29.2]} 26... Nd4 {[%clk 0:00:41.5]} 27. Bd1 {[%clk 0:00:28.2]} 27... c5
{[%clk 0:00:41.9]} 28. Nf3 {[%clk 0:00:28.7]} 28... Nc6 {[%clk 0:00:40.8]} 29.
Re1 {[%clk 0:00:21]} 29... Bc3 {[%clk 0:00:40.1]} 30. Re2 {[%clk 0:00:21.5]}
30... Bb7 {[%clk 0:00:39.9]} 31. Kf1 {[%clk 0:00:22.1]} 31... Nb4 {[%clk
0:00:39.4]} 32. Bg5 {[%clk 0:00:22.8]} 32... Rc8 {[%clk 0:00:35.8]} 33. Rxe8+
{[%clk 0:00:21.6]} 33... Rxe8 {[%clk 0:00:37.7]} 34. Be2 {[%clk 0:00:22.8]}
34... f6 {[%clk 0:00:32.5]} 35. Bh6 {[%clk 0:00:22.5]} 35... Rd8 {[%clk
0:00:23.5]} 36. Rd1 {[%clk 0:00:21.5]} 36... Rxd1+ {[%clk 0:00:24.5]} 37. Bxd1
{[%clk 0:00:23.4]} 37... Kf7 {[%clk 0:00:16.7]} 38. Bf4 {[%clk 0:00:24.3]} 38...
Na6 {[%clk 0:00:18]} 39. h4 {[%clk 0:00:24.8]} 39... Be4 {[%clk 0:00:17.9]} 40.
Ke2 {[%clk 0:00:22.9]} 40... Ke6 {[%clk 0:00:19.1]} 41. Ke3 {[%clk 0:00:22.3]}
41... Bb1 {[%clk 0:00:18.3]} 42. g4 {[%clk 0:00:22.6]} 42... Nb4 {[%clk
0:00:18.3]} 43. Bc7 {[%clk 0:00:22.3]} 43... Nc2+ {[%clk 0:00:18.1]} 44. Ke2
{[%clk 0:00:22]} 44... Nd4+ {[%clk 0:00:15.8]} 45. Nxd4+ {[%clk 0:00:22.9]}
45... cxd4 {[%clk 0:00:17.2]} 46. Bxb6 {[%clk 0:00:23.8]} 46... Ke5 {[%clk
0:00:16.8]} 47. Bc7+ {[%clk 0:00:24]} 47... Ke6 {[%clk 0:00:16.5]} 48. Bf4
{[%clk 0:00:24.5]} 48... h5 {[%clk 0:00:13.8]} 49. gxh5 {[%clk 0:00:24.6]} 49...
gxh5 {[%clk 0:00:15.7]} 50. Bd2 {[%clk 0:00:22.3]} 50... Bxd2 {[%clk 0:00:16.8]}
51. Kxd2 {[%clk 0:00:23.1]} 51... Bg6 {[%clk 0:00:18.7]} 52. Bf3 {[%clk
0:00:22.7]} 52... Kd6 {[%clk 0:00:19.3]} 53. Be2 {[%clk 0:00:22.4]} 53... Kc5
{[%clk 0:00:20.6]} 54. Bd3 {[%clk 0:00:24.3]} 54... Bf7 {[%clk 0:00:20.6]} 55.
Bf5 {[%clk 0:00:24.4]} 55... Kb4 {[%clk 0:00:21.2]} 56. Kd3 {[%clk 0:00:25.7]}
56... Kxb3 {[%clk 0:00:21.1]} 57. c5 {[%clk 0:00:26.7]} 57... Be8 {[%clk
0:00:16.3]} 58. Kxd4 {[%clk 0:00:27.8]} 58... Bxa4 {[%clk 0:00:15.7]} 59. Bg6
{[%clk 0:00:26.9]} 59... Bc6 {[%clk 0:00:14.7]} 60. Bxh5 {[%clk 0:00:28.1]}
60... a4 {[%clk 0:00:15.5]} 61. Bf7+ {[%clk 0:00:29.4]} 61... Kb4 {[%clk
0:00:15]} 62. h5 {[%clk 0:00:30.9]} 62... a3 {[%clk 0:00:15.1]} 63. h6 {[%clk
0:00:31.8]} 63... Be8 {[%clk 0:00:16.8]} 64. Bg8 {[%clk 0:00:30]} 64... Bg6
{[%clk 0:00:17.2]} 65. c6 {[%clk 0:00:31.2]} 65... Bh7 {[%clk 0:00:17.1]} 66.
Ba2 {[%clk 0:00:29.5]} 1-0